bitfinex-derivatives/quotes_BTCF0:USTF0_20251208
["timestamp","ask_amount","ask_price","bid_price","bid_amount"]
[1765189179011,0.00016295,92090.0,92089.0,0.0683481]
[1765189180013,0.02933295,92090.0,92089.0,0.0683481]
[1765189180605,0.05727295,92090.0,92089.0,0.0683481]
[1765189181811,0.00016295,92090.0,92089.0,0.0683481]
[1765189182116,0.00016295,92090.0,92089.0,0.10732733]
[1765189183302,0.01698,92112.0,92111.0,0.0682155]
[1765189183501,0.05868,92112.0,92111.0,0.0682155]
[1765189184608,0.06168,92112.0,92111.0,0.07900188]
[1765189184818,0.06668,92112.0,92111.0,0.07900188]
[1765189186213,0.06368,92112.0,92111.0,0.07900188]
[1765189188818,0.03384,92112.0,92111.0,0.07900188]
[1765189189218,0.06368,92112.0,92111.0,0.07900188]
[1765189200619,0.07555,92110.0,92109.0,0.03108]
[1765189200933,0.13415011,92110.0,92109.0,0.00038035]
[1765189201131,0.05868,92103.0,92100.0,0.0108567]
[1765189201322,0.05868,92103.0,92102.0,0.02790285]
[1765189201523,0.05868,92103.0,92102.0,0.05752285]
[1765189203224,0.05868,92103.0,92102.0,0.02790285]
[1765189203425,0.05868,92103.0,92102.0,0.05752285]
[1765189203624,0.05968,92103.0,92102.0,0.05752285]
[1765189206332,0.05968,92103.0,92102.0,0.00016285]
[1765189206836,0.05968,92103.0,92102.0,0.02746285]
[1765189207227,0.05968,92103.0,92102.0,0.05689285]
[1765189207932,0.001,92103.0,92102.0,0.05689285]
[1765189208836,0.03028,92103.0,92102.0,0.05689285]
[1765189209134,0.001,92103.0,92102.0,0.05689285]
[1765189210225,0.05986,92103.0,92102.0,0.05689285]
[1765189216239,0.05986,92103.0,92102.0,0.08617299]
[1765189217649,0.05986,92103.0,92102.0,0.02746285]
[1765189217846,0.05986,92103.0,92102.0,0.00016285]
[1765189219556,0.05986,92103.0,92102.0,0.02813285]
[1765189219750,0.05986,92103.0,92102.0,0.05609285]
[1765189224850,0.001,92103.0,92102.0,0.05609285]
[1765189225156,0.001,92103.0,92102.0,0.08537299]
[1765189225448,0.05759,92103.0,92102.0,0.08537299]
[1765189226344,0.05759,92103.0,92102.0,0.05741299]
[1765189226642,0.05759,92103.0,92102.0,0.08537299]
[1765189227246,0.05759,92103.0,92102.0,0.05609285]
[1765189228957,0.05759,92103.0,92102.0,0.02813285]
[1765189229451,0.05759,92103.0,92102.0,0.05609285]
[1765189230351,0.05759,92103.0,92102.0,0.08537941]
[1765189231839,0.05759,92103.0,92102.0,0.00016285]
[1765189235849,0.11607583,92103.0,92102.0,0.00016285]
[1765189236050,0.05759,92103.0,92102.0,0.00016285]
[1765189239950,0.0674466,92102.0,92101.0,0.03463]
[1765189240153,0.0674472,92097.0,92096.0,0.02944]
[1765189240454,0.0674472,92097.0,92096.0,0.05741]
[1765189240660,0.12600284,92097.0,92096.0,0.05593]
[1765189242161,0.12700284,92097.0,92096.0,0.05593]
[1765189243254,0.12700284,92097.0,92096.0,0.05693]
[1765189243657,0.12700284,92097.0,92096.0,0.05593]
[1765189243860,0.12800284,92097.0,92096.0,0.05593]
[1765189244960,0.0694472,92097.0,92096.0,0.02797]
[1765189246063,0.0694472,92097.0,92096.0,0.05764]
[1765189247262,0.0684472,92097.0,92096.0,0.05764]
[1765189247464,0.0694472,92097.0,92096.0,0.05764]
[1765189247965,0.0684472,92097.0,92096.0,0.05764]
[1765189248167,0.0694472,92097.0,92096.0,0.05764]
[1765189250461,0.0684472,92097.0,92096.0,0.05764]
[1765189250773,0.0694472,92097.0,92096.0,0.05764]
[1765189250970,0.0684472,92097.0,92096.0,0.05764]
[1765189251164,0.0694472,92097.0,92096.0,0.05764]
[1765189251766,0.0694472,92097.0,92096.0,0.02797]
[1765189251965,0.0684472,92097.0,92096.0,0.02797]
[1765189252165,0.0694472,92097.0,92096.0,0.02797]
[1765189252386,0.05731,92096.0,92095.0,0.0108573]
[1765189252568,0.05731,92096.0,92095.0,0.0387073]
[1765189253773,0.07273,92096.0,92095.0,0.0387073]
[1765189254474,0.0837878,92092.0,92091.0,0.03838]
[1765189254874,0.0681682,92088.0,92087.0,0.00016285]
[1765189257069,0.0681682,92088.0,92087.0,0.00216285]
[1765189257878,0.0691682,92088.0,92087.0,0.00016285]
[1765189258178,0.0701682,92088.0,92087.0,0.00016285]
[1765189260168,0.0701682,92088.0,92087.0,0.02801285]
[1765189260478,0.0701682,92088.0,92087.0,0.00016285]
[1765189261373,0.0691682,92088.0,92087.0,0.00016285]
[1765189261571,0.0701682,92088.0,92087.0,0.00016285]
[1765189262873,0.0701682,92088.0,92087.0,0.02801285]
[1765189263074,0.0701682,92088.0,92087.0,0.05768285]
[1765189264671,0.0691682,92088.0,92087.0,0.05768285]
[1765189264872,0.0701682,92088.0,92087.0,0.02801285]
[1765189265265,0.0691682,92088.0,92087.0,0.02801285]
[1765189265470,0.0701682,92088.0,92087.0,0.02801285]
[1765189265775,0.0874082,92088.0,92087.0,0.00016285]
[1765189266079,0.1374082,92088.0,92087.0,0.00016285]
[1765189266279,0.0874082,92088.0,92087.0,0.00016285]
[1765189266979,0.0682986,92085.0,92084.0,0.03120603]
[1765189267392,0.05744,92077.0,92076.0,0.04014616]
[1765189267581,0.0682995,92077.0,92076.0,0.02928656]
[1765189267782,0.07186,92075.0,92074.0,0.05853656]
[1765189268673,0.07186,92075.0,92074.0,0.02925]
[1765189268875,0.0108602,92071.0,92070.0,0.02928656]
[1765189269083,0.0683006,92068.0,92067.0,0.02928656]
[1765189269275,0.0683006,92068.0,92067.0,0.04041035]
[1765189269474,0.0683006,92068.0,92067.0,0.02925]
[1765189269871,0.0683006,92068.0,92067.0,0.05818]
[1765189270477,0.0683006,92068.0,92067.0,0.06218]
[1765189270672,0.05744,92068.0,92067.0,0.06218]
[1765189271270,0.05744,92068.0,92067.0,0.06318]
[1765189283986,0.06655,92068.0,92067.0,0.005]
[1765189284686,0.06655,92068.0,92067.0,0.03412]
[1765189286592,0.06655,92068.0,92067.0,0.005]
[1765189288388,0.11655,92068.0,92067.0,0.005]
[1765189288694,0.11655,92068.0,92059.0,0.03251]
[1765189288695,0.0819915,92060.0,92059.0,0.03251]
[1765189289084,0.05487,92038.0,92037.0,0.05675]
[1765189289993,0.05487,92038.0,92037.0,0.06780988]
[1765189290190,0.05487,92038.0,92037.0,0.05675]
[1765189290889,0.05587,92038.0,92037.0,0.05675]
[1765189292191,0.05787,92038.0,92037.0,0.05675]
[1765189300400,0.05787,92038.0,92036.0,0.0108643]
[1765189300601,0.05787,92038.0,92037.0,0.05675]
[1765189300802,0.0108646,92034.0,92033.0,0.05675]
[1765189301101,0.053,92038.0,92029.0,0.05648]
[1765189301102,0.0657351,92030.0,92029.0,0.05648]
[1765189301304,0.0657351,92030.0,92029.0,0.05675]
[1765189301598,0.0657351,92030.0,92028.0,0.00016294]
[1765189301599,0.05487,92029.0,92028.0,0.02928294]
[1765189302196,0.05487,92029.0,92028.0,0.05521294]
[1765189303003,0.05487,92029.0,92028.0,0.05621294]
[1765189303204,0.05487,92029.0,92028.0,0.05721294]
[1765189304807,0.05587,92029.0,92028.0,0.05621294]
[1765189305007,0.05587,92029.0,92028.0,0.05521294]
[1765189305205,0.05887,92029.0,92028.0,0.05521294]
[1765189308309,0.05687,92029.0,92028.0,0.05521294]
[1765189308506,0.05787,92029.0,92028.0,0.05521294]
[1765189309603,0.003,92029.0,92028.0,0.05521294]
[1765189309797,0.002,92029.0,92028.0,0.05521294]
[1765189309999,0.003,92029.0,92028.0,0.05521294]
[1765189310200,0.0653334,92045.0,92044.0,0.05505]
[1765189311909,0.0653334,92045.0,92044.0,0.0271]
[1765189312108,0.0653338,92041.0,92040.0,0.07204]
[1765189312311,0.0653344,92036.0,92035.0,0.07204]
[1765189313408,0.0683344,92036.0,92035.0,0.07204]
[1765189314511,0.065335,92031.0,92030.0,0.07204]
[1765189315514,0.05447,92031.0,92030.0,0.07204]
[1765189315806,0.05547,92031.0,92030.0,0.07204]
[1765189316012,0.02836,92031.0,92030.0,0.07204]
[1765189316202,0.05547,92031.0,92030.0,0.07204]
[1765189318303,0.05647,92031.0,92030.0,0.07204]
[1765189318503,0.002,92031.0,92030.0,0.07204]
[1765189318702,0.002,92031.0,92030.0,0.10132656]
[1765189318906,0.001,92031.0,92030.0,0.07204]
[1765189319104,0.0108636,92043.0,92042.0,0.05505]
[1765189319807,0.0653332,92046.0,92045.0,0.05505]
[1765189320900,0.05853308,92056.0,92046.0,0.0829032]
[1765189321106,0.0108619,92057.0,92046.0,0.0829032]
[1765189321502,0.08726574,92060.0,92046.0,0.0829032]
[1765189321706,0.08726574,92060.0,92059.0,0.0659117]
[1765189321910,0.0653312,92063.0,92062.0,0.0659113]
[1765189322212,0.05447,92060.0,92059.0,0.0379616]
[1765189322416,0.25138574,92069.0,92055.0,0.065912]
[1765189322417,0.05447,92056.0,92055.0,0.065912]
[1765189323514,0.05647,92056.0,92055.0,0.065912]
[1765189324913,0.007,92056.0,92055.0,0.065912]
[1765189325113,0.06515,92056.0,92055.0,0.065912]
[1765189329718,0.06515,92056.0,92055.0,0.05505]
[1765189329914,0.007,92056.0,92055.0,0.05505]
[1765189330311,0.03688,92056.0,92055.0,0.05505]
[1765189330511,0.06515,92056.0,92055.0,0.05505]
[1765189335720,0.0677329,92049.0,92048.0,0.05791]
[1765189336225,0.05687,92049.0,92048.0,0.05791]
[1765189337122,0.05987,92049.0,92048.0,0.05791]
[1765189337926,0.06187,92049.0,92048.0,0.05791]
[1765189340831,0.0727328,92049.0,92048.0,0.02885]
[1765189341035,0.05687,92047.0,92046.0,0.00016294]
[1765189341730,0.05687,92047.0,92046.0,0.02901294]
[1765189342132,0.05787,92047.0,92046.0,0.03987614]
[1765189343233,0.05987,92047.0,92046.0,0.06893614]
[1765189346436,0.05987,92047.0,92046.0,0.05807294]
[1765189355950,0.09987,92047.0,92046.0,0.00016294]
[1765189356248,0.10987,92047.0,92046.0,0.02901294]
[1765189356447,0.10987,92047.0,92046.0,0.05807294]
[1765189358250,0.10987,92047.0,92046.0,0.00016294]
[1765189359944,0.10987,92047.0,92034.0,0.02676]
[1765189359945,0.0768645,92035.0,92034.0,0.02676]
[1765189360152,0.6610245,92035.0,92034.0,0.02676]
[1765189360345,0.0677355,92026.0,92025.0,0.05800924]
[1765189362248,0.05687,92026.0,92025.0,0.07458924]
[1765189362451,0.0677355,92026.0,92025.0,0.07458924]
[1765189362952,0.0677355,92026.0,92025.0,0.07558924]
[1765189363554,0.0677355,92026.0,92025.0,0.07758924]
[1765189364140,0.0677355,92026.0,92025.0,0.07458924]
[1765189365855,0.05687,92026.0,92025.0,0.07458924]
[1765189380963,0.00016294,92035.0,92032.0,0.0288348]
[1765189381157,0.28752294,92035.0,92034.0,0.05711]
[1765189381357,0.31700294,92035.0,92034.0,0.05711]
[1765189382260,0.26224294,92035.0,92034.0,0.05711]
[1765189382469,0.00216294,92035.0,92034.0,0.05711]
[1765189382657,0.54324,92052.0,92051.0,0.0108626]
[1765189382857,0.54324,92052.0,92051.0,0.0679726]
[1765189383063,0.48648,92052.0,92051.0,0.0679726]
[1765189383463,0.51376,92052.0,92051.0,0.0679726]
[1765189383663,0.05676,92052.0,92051.0,0.0679726]
[1765189384569,0.05876,92052.0,92051.0,0.0679726]
[1765189384869,0.06176,92052.0,92051.0,0.0679726]
[1765189385067,0.005,92052.0,92051.0,0.0679726]
[1765189385464,0.50424,92057.0,92056.0,0.068942]
[1765189387573,0.50824,92057.0,92056.0,0.068942]
[1765189389571,0.004,92057.0,92056.0,0.068942]
[1765189390565,0.00016294,92061.0,92060.0,0.0867715]
[1765189390769,0.50416,92077.0,92060.0,0.0867715]
[1765189390770,0.55874,92077.0,92076.0,0.0689396]
[1765189391175,0.50416,92077.0,92076.0,0.0689396]
[1765189391567,0.53128,92077.0,92076.0,0.0689396]
[1765189391874,0.53128,92077.0,92076.0,0.0699396]
[1765189392073,0.55874,92077.0,92076.0,0.0699396]
[1765189393576,0.55974,92077.0,92076.0,0.0699396]
[1765189395273,0.55974,92077.0,92076.0,0.05908]
[1765189398771,0.55974,92077.0,92076.0,0.001]
[1765189399178,0.55974,92077.0,92076.0,0.07383]
[1765189399479,0.55974,92077.0,92076.0,0.10136]
[1765189402181,0.60974,92077.0,92076.0,0.04585]
[1765189402387,0.55974,92077.0,92076.0,0.04585]
[1765189403883,0.55974,92077.0,92076.0,0.10136]
[1765189404787,0.50516,92077.0,92076.0,0.10136]
[1765189405001,0.53386,92077.0,92076.0,0.10136]
[1765189405383,0.56126,92077.0,92076.0,0.10136]
[1765189407890,0.53386,92077.0,92076.0,0.10136]
[1765189408090,0.50516,92077.0,92076.0,0.10136]
[1765189408490,0.53386,92077.0,92076.0,0.10136]
[1765189408796,0.56126,92077.0,92076.0,0.10136]
[1765189410687,0.56126,92077.0,92076.0,0.07383]
[1765189410892,0.56126,92077.0,92076.0,0.10136]
[1765189411392,0.56126,92077.0,92076.0,0.04585]
[1765189411994,0.56126,92077.0,92076.0,0.07383]
[1765189413094,0.56126,92077.0,92076.0,0.04585]
[1765189413893,0.56126,92077.0,92076.0,0.10136]
[1765189414400,0.56126,92077.0,92076.0,0.11907]
[1765189415400,0.56126,92077.0,92076.0,0.10136]
[1765189417603,0.56126,92077.0,92076.0,0.04585]
[1765189418496,0.61126,92077.0,92076.0,0.04585]
[1765189418803,0.56126,92077.0,92076.0,0.04585]
[1765189420097,0.60126,92077.0,92076.0,0.04585]
[1765189421203,0.56126,92077.0,92076.0,0.04585]
[1765189421502,0.60126,92077.0,92076.0,0.04585]
[1765189424205,0.56126,92077.0,92076.0,0.10085]
[1765189425300,0.56106,92077.0,92076.0,0.10085]
[1765189425504,0.56106,92077.0,92076.0,0.1117096]
[1765189440608,0.001,92077.0,92076.0,0.1117096]
[1765189441211,0.00016294,92086.0,92085.0,0.0870786]
[1765189441406,0.26411,92095.0,92094.0,0.0694375]
[1765189441611,0.05527,92095.0,92094.0,0.0694375]
[1765189443512,0.05527,92095.0,92094.0,0.05858]
[1765189445119,0.50392,92100.0,92088.0,0.0108582]
[1765189445120,0.51721,92100.0,92088.0,0.0108582]
[1765189445424,0.05527,92089.0,92088.0,0.0694382]
[1765189445922,0.05527,92089.0,92088.0,0.02911]
[1765189446123,0.05527,92089.0,92088.0,0.05858]
[1765189458722,0.05527,92089.0,92088.0,0.07544]
[1765189459826,0.0691275,92095.0,92094.0,0.05974]
[1765189465536,0.0691281,92089.0,92088.0,0.10204]
[1765189466134,0.05827,92089.0,92088.0,0.10204]
[1765189466736,0.07753757,92098.0,92088.0,0.10204]
[1765189466737,0.0691276,92094.0,92093.0,0.05974]
[1765189466934,0.05827,92094.0,92093.0,0.05974]
[1765189468528,0.05862195,92099.0,92093.0,0.05974]
[1765189468741,0.07753757,92103.0,92102.0,0.05974]
[1765189468742,0.05862195,92103.0,92102.0,0.05974]
[1765189469037,0.02848,92103.0,92102.0,0.05974]
[1765189469238,0.11689195,92103.0,92102.0,0.05974]
[1765189470433,0.05827,92103.0,92102.0,0.05974]
[1765189471337,0.05927,92103.0,92102.0,0.05974]
[1765189471841,0.05927,92103.0,92102.0,0.06074]
[1765189475037,0.13759889,92103.0,92102.0,0.06074]
[1765189477831,0.05927,92103.0,92102.0,0.001]
[1765189478036,0.09927,92103.0,92102.0,0.001]
[1765189478435,0.09927,92103.0,92102.0,0.03089]
[1765189479246,0.09927,92103.0,92102.0,0.001]
[1765189479546,0.0691279,92091.0,92090.0,0.05974]
[1765189479845,0.0691279,92091.0,92088.0,0.0423]
[1765189480044,0.05827,92089.0,92088.0,0.10204]
[1765189480241,0.42368,92092.0,92091.0,0.0705979]
[1765189481539,0.42368,92092.0,92091.0,0.0715979]
[1765189481939,0.42368,92092.0,92091.0,0.0745979]
[1765189482747,0.48095,92092.0,92091.0,0.0745979]
[1765189483747,0.48095,92092.0,92091.0,0.0735979]
[1765189484242,0.48095,92092.0,92091.0,0.1184779]
[1765189486553,0.0666867,92102.0,92101.0,0.0700665]
[1765189488048,0.0676867,92102.0,92101.0,0.0700665]
[1765189488537,0.0676867,92102.0,92101.0,0.05921]
[1765189488742,0.05583,92096.0,92095.0,0.0700674]
[1765189489147,0.05583,92096.0,92095.0,0.0864574]
[1765189490041,0.05583,92096.0,92095.0,0.0884574]
[1765189491253,0.05583,92096.0,92095.0,0.0864574]
[1765189491451,0.05583,92096.0,92095.0,0.0884574]
[1765189498850,0.05583,92096.0,92095.0,0.0776]
[1765189500559,0.05583,92096.0,92095.0,0.0756]
[1765189500851,0.05583,92096.0,92095.0,0.0766]
[1765189501243,0.05583,92096.0,92095.0,0.0776]
[1765189502050,0.10583,92096.0,92095.0,0.002]
[1765189502258,0.05583,92096.0,92095.0,0.002]
[1765189502647,0.05583,92096.0,92095.0,0.02908]
[1765189503152,0.05583,92096.0,92095.0,0.05636]
[1765189503652,0.05583,92096.0,92095.0,0.05436]
[1765189504555,0.05683,92096.0,92095.0,0.05436]
[1765189505957,0.05683,92096.0,92095.0,0.0821474]
[1765189506256,0.05583,92096.0,92095.0,0.0821474]
[1765189506449,0.05683,92096.0,92095.0,0.0821474]
[1765189507258,0.05583,92096.0,92095.0,0.0821474]
[1765189507456,0.05583,92096.0,92095.0,0.0831474]
[1765189508452,0.05583,92096.0,92095.0,0.0821474]
[1765189508657,0.05583,92096.0,92095.0,0.0841474]
[1765189509658,0.05583,92096.0,92095.0,0.07329]
[1765189510554,0.05583,92096.0,92095.0,0.07129]
[1765189510857,0.05583,92096.0,92095.0,0.07229]
[1765189511162,0.05583,92096.0,92095.0,0.07129]
[1765189511454,0.05683,92096.0,92095.0,0.07229]
[1765189512862,0.05583,92096.0,92095.0,0.07229]
[1765189513354,0.05544,92092.0,92091.0,0.04488]
[1765189513868,0.11407519,92092.0,92091.0,0.04488]
[1765189514154,0.16407519,92092.0,92091.0,0.04488]
[1765189514362,0.11407519,92092.0,92091.0,0.04488]
[1765189514560,0.11407519,92092.0,92091.0,0.04588]
[1765189514965,0.12493299,92092.0,92091.0,0.04588]
[1765189515261,0.0662978,92092.0,92091.0,0.04588]
[1765189515853,0.0662978,92092.0,92091.0,0.10282]
[1765189516264,0.0672978,92092.0,92091.0,0.10282]
[1765189516756,0.0672978,92092.0,92091.0,0.10182]
[1765189517756,0.0662978,92092.0,92091.0,0.10182]
[1765189517946,0.0672978,92092.0,92091.0,0.10182]
[1765189518853,0.0672978,92092.0,92091.0,0.07387]
[1765189519763,0.0672978,92092.0,92091.0,0.10182]
[1765189520157,0.0662978,92092.0,92091.0,0.10182]
[1765189520358,0.0672978,92092.0,92091.0,0.10182]
[1765189524267,0.1072978,92092.0,92091.0,0.04488]
[1765189524965,0.1072978,92092.0,92091.0,0.04455412]
[1765189525163,0.1072978,92092.0,92085.0,0.05710294]
[1765189525164,0.0662985,92086.0,92085.0,0.05710294]
[1765189525362,0.0662985,92086.0,92085.0,0.02915294]
[1765189525565,0.1162985,92086.0,92085.0,0.02915294]
[1765189525869,0.0662985,92086.0,92085.0,0.05710294]
[1765189526162,0.0662985,92086.0,92085.0,0.07453294]
[1765189526462,0.0662985,92086.0,92085.0,0.07553294]
[1765189527265,0.0672985,92086.0,92085.0,0.07453294]
[1765189528065,0.05544,92070.0,92069.0,0.05694]
[1765189529768,0.05544,92070.0,92069.0,0.06094]
[1765189530262,0.05544,92070.0,92069.0,0.05694]
[1765189530469,0.05544,92070.0,92069.0,0.05794]
[1765189530669,0.5146202,92072.0,92069.0,0.05794]
[1765189530670,0.50376,92072.0,92071.0,0.05694]
[1765189531064,0.08741683,92079.0,92070.0,0.0282904]
[1765189531065,0.08741683,92079.0,92078.0,0.05694]
[1765189531264,0.00016294,92079.0,92078.0,0.05694]
[1765189532769,0.00116294,92079.0,92078.0,0.05694]
[1765189533266,0.00016294,92079.0,92078.0,0.05994]
[1765189534668,0.05560294,92079.0,92078.0,0.05994]
[1765189538261,0.10560294,92079.0,92078.0,0.03199]
[1765189538862,0.10560294,92079.0,92070.0,0.07437]
[1765189538863,0.05544,92071.0,92070.0,0.07437]
[1765189539068,0.0663002,92071.0,92070.0,0.07437]
[1765189540866,0.05544,92071.0,92070.0,0.07437]
[1765189541066,0.05544,92071.0,92070.0,0.07537]
[1765189541457,0.05644,92071.0,92070.0,0.07537]
[1765189542873,0.05544,92071.0,92070.0,0.07537]
[1765189548072,0.05544,92071.0,92070.0,0.07437]
[1765189548273,0.05544,92071.0,92070.0,0.07537]
[1765189550977,0.05544,92071.0,92070.0,0.07437]
[1765189551177,0.06570234,92079.0,92078.0,0.05814]
[1765189553680,0.06670234,92079.0,92078.0,0.05814]
[1765189554281,0.12528402,92079.0,92078.0,0.05814]
[1765189556381,0.06670234,92079.0,92078.0,0.05814]
[1765189556982,0.11570234,92079.0,92078.0,0.05814]
[1765189557187,0.11670234,92079.0,92078.0,0.05814]
[1765189557984,0.11670234,92079.0,92078.0,0.02847]
[1765189558287,0.11670234,92079.0,92078.0,0.05814]
[1765189558476,0.11770234,92079.0,92078.0,0.05814]
[1765189559187,0.11548399,92079.0,92078.0,0.0689994]
[1765189559795,0.05684294,92079.0,92078.0,0.0689994]
[1765189560586,0.40960294,92079.0,92078.0,0.0689994]
[1765189561177,0.40960294,92079.0,92078.0,0.05814]
[1765189561886,0.40960294,92079.0,92078.0,0.05914]
[1765189563087,0.40960294,92079.0,92078.0,0.05814]
[1765189563284,0.40960294,92079.0,92078.0,0.05914]
[1765189563589,0.40860294,92079.0,92078.0,0.05914]
[1765189564786,0.40860294,92079.0,92078.0,0.05814]
[1765189564986,0.40860294,92079.0,92078.0,0.05914]
[1765189569291,0.40860294,92079.0,92078.0,0.05814]
[1765189569490,0.40860294,92079.0,92078.0,0.05914]
[1765189569891,0.40860294,92079.0,92078.0,0.05814]
[1765189570192,0.40860294,92079.0,92078.0,0.05914]
[1765189571988,0.44860294,92079.0,92078.0,0.05914]
[1765189572184,0.45860294,92079.0,92078.0,0.001]
[1765189572391,0.45860294,92079.0,92078.0,0.03095]
[1765189572980,0.45860294,92079.0,92078.0,0.001]
[1765189573584,0.40392294,92079.0,92074.0,0.037]
[1765189573787,0.0669998,92075.0,92074.0,0.06695]
[1765189573986,0.1169998,92075.0,92074.0,0.06695]
[1765189574186,0.1169998,92075.0,92074.0,0.037]
[1765189574387,0.1169998,92075.0,92074.0,0.06695]
[1765189574994,0.1169998,92075.0,92074.0,0.02995]
[1765189575197,0.17563996,92075.0,92074.0,0.05941]
[1765189575493,0.17563996,92075.0,92074.0,0.06141]
[1765189580399,0.1169998,92075.0,92074.0,0.06141]
[1765189581497,0.1169998,92075.0,92074.0,0.002]
[1765189583404,0.1169998,92075.0,92074.0,0.06141]
[1765189583405,0.0669998,92075.0,92074.0,0.06141]
[1765189583601,0.05614,92075.0,92074.0,0.0722699]
[1765189584492,0.11478016,92077.0,92076.0,0.07618]
[1765189584688,0.61858016,92077.0,92076.0,0.07618]
[1765189585404,0.55994,92077.0,92076.0,0.07618]
[1765189585700,0.05864016,92078.0,92077.0,0.0702695]
[1765189585998,0.00016294,92079.0,92078.0,0.05941]
[1765189587902,0.00016294,92079.0,92078.0,0.06041]
[1765189589407,0.00116294,92079.0,92078.0,0.06041]
[1765189592513,0.02958294,92079.0,92078.0,0.06041]
[1765189592919,0.00116294,92079.0,92078.0,0.06041]
[1765189594019,0.02958294,92079.0,92078.0,0.06041]
[1765189594417,0.00116294,92079.0,92078.0,0.06041]
[1765189596521,0.02116294,92079.0,92078.0,0.06041]
[1765189611332,0.1096631,92079.0,92078.0,0.06041]
[1765189611829,0.02116294,92079.0,92078.0,0.06041]
[1765189615032,0.07869294,92079.0,92078.0,0.06041]
[1765189615731,0.07869294,92079.0,92078.0,0.001]
[1765189616028,0.12869294,92079.0,92078.0,0.001]
[1765189616821,0.0683904,92070.0,92069.0,0.0722]
[1765189617021,0.1183904,92070.0,92069.0,0.0722]
[1765189617222,0.17700764,92070.0,92069.0,0.05549]
[1765189617834,0.17700768,92070.0,92069.0,0.05549]
[1765189618034,0.17700768,92070.0,92069.0,0.05649]
[1765189618332,0.17700768,92070.0,92069.0,0.004]
[1765189618529,0.1183904,92070.0,92069.0,0.004]
[1765189619931,0.0683904,92070.0,92069.0,0.06238]
[1765189620230,0.05753,92070.0,92069.0,0.06238]
[1765189620532,0.56129,92070.0,92069.0,0.06238]
[1765189638834,0.05753,92070.0,92069.0,0.06238]
[1765189639037,0.56133,92070.0,92069.0,0.06238]
[1765189639248,0.05753,92070.0,92069.0,0.06238]
[1765189639452,0.56133,92070.0,92069.0,0.06238]
[1765189639751,0.53366,92070.0,92069.0,0.06238]
[1765189640246,0.56317,92070.0,92069.0,0.06238]
[1765189640641,0.05937,92070.0,92069.0,0.06238]
[1765189640941,0.56317,92070.0,92069.0,0.06238]
[1765189641341,0.56317,92070.0,92069.0,0.004]
[1765189641541,0.56317,92070.0,92069.0,0.03355]
[1765189642549,0.61317,92070.0,92069.0,0.004]
[1765189642858,0.56317,92070.0,92069.0,0.004]
[1765189646364,0.61317,92070.0,92069.0,0.004]
[1765189647947,0.61317,92070.0,92069.0,0.06225]
[1765189648153,0.61317,92070.0,92069.0,0.004]
[1765189648461,0.56317,92070.0,92069.0,0.004]
[1765189648660,0.60317,92070.0,92069.0,0.004]
[1765189649354,0.56317,92070.0,92069.0,0.004]
[1765189649757,0.61317,92070.0,92069.0,0.004]
[1765189650157,0.56317,92070.0,92069.0,0.004]
[1765189650360,0.6717485,92070.0,92069.0,0.004]
[1765189651064,0.6217485,92070.0,92069.0,0.03355]
[1765189651264,0.6217485,92070.0,92069.0,0.06225]
[1765189651471,0.56317,92070.0,92069.0,0.06225]
[1765189651657,0.61317,92070.0,92069.0,0.06225]
[1765189652465,0.56317,92070.0,92069.0,0.06225]
[1765189652652,0.61317,92070.0,92069.0,0.06225]
[1765189653466,0.10937,92070.0,92069.0,0.06225]
[1765189653656,0.55965,92070.0,92069.0,0.06225]
[1765189654265,0.50965,92070.0,92069.0,0.06225]
[1765189654462,0.55965,92070.0,92069.0,0.06225]
[1765189654871,0.50965,92070.0,92069.0,0.06225]
[1765189656767,0.50965,92070.0,92069.0,0.03355]
[1765189657961,0.55965,92070.0,92069.0,0.03355]
[1765189661559,0.55965,92070.0,92069.0,0.004]
[1765189661960,0.11128,92070.0,92069.0,0.004]
[1765189662157,0.57508,92070.0,92069.0,0.004]
[1765189662462,0.62508,92070.0,92069.0,0.004]
[1765189666271,0.61317,92070.0,92069.0,0.06334]
[1765189666974,0.61317,92070.0,92069.0,0.004]
[1765189667375,0.61317,92070.0,92069.0,0.03386]
[1765189668071,0.61317,92070.0,92069.0,0.004]
[1765189668773,0.62508,92070.0,92069.0,0.004]
[1765189672172,0.62608,92070.0,92069.0,0.003]
[1765189672467,0.0678008,92066.0,92065.0,0.04967]
[1765189672658,0.0878008,92066.0,92065.0,0.04967]
[1765189672862,0.0678014,92061.0,92060.0,0.00016294]
[1765189673057,0.1078014,92061.0,92060.0,0.00016294]
[1765189673472,0.1178014,92061.0,92060.0,0.00016294]
[1765189674561,0.1178014,92061.0,92060.0,0.05950294]
[1765189674963,0.1178014,92061.0,92060.0,0.03002294]
[1765189675162,0.1178014,92061.0,92060.0,0.03102294]
[1765189675569,0.1178014,92061.0,92060.0,0.00116294]
[1765189675959,0.1178014,92061.0,92060.0,0.03102294]
[1765189676571,0.1078014,92061.0,92060.0,0.03102294]
[1765189679674,0.1078014,92061.0,92060.0,0.06050294]
[1765189680773,0.05694,92061.0,92060.0,0.07136444]
[1765189682168,0.4255,92061.0,92060.0,0.07136444]
[1765189687472,0.56074,92061.0,92060.0,0.07136444]
[1765189689683,0.05694,92061.0,92060.0,0.07136444]
[1765189689885,0.56074,92061.0,92060.0,0.07136444]
[1765189693980,0.56074,92061.0,92060.0,0.06050294]
[1765189693981,0.61074,92061.0,92060.0,0.06050294]
[1765189694487,0.61074,92061.0,92060.0,0.03102294]
[1765189695182,0.61074,92061.0,92060.0,0.00116294]
[1765189696383,0.62265,92061.0,92060.0,0.00116294]
[1765189697290,0.62265,92061.0,92060.0,0.02936294]
[1765189697488,0.61074,92061.0,92060.0,0.02936294]
[1765189698089,0.61074,92061.0,92060.0,0.07729294]
[1765189698982,0.61074,92061.0,92060.0,0.10579294]
[1765189701492,0.61074,92061.0,92060.0,0.07729294]
[1765189701794,0.61074,92061.0,92060.0,0.10579294]
[1765189704295,0.56074,92061.0,92060.0,0.10579294]
[1765189705688,0.60074,92061.0,92060.0,0.10579294]
[1765189707503,0.56074,92061.0,92060.0,0.10579294]